[Event "Early-Titled-Tuesday-Blitz-March-26-2024"]
[Site "Chess.com"]
[Date "2024.03.26"]
[Round "4"]
[White "DreamsAreFake"]
[Black "Zhigalko_Sergei"]
[Result "1/2-1/2"]
[WhiteElo "2748"]
[BlackElo "2906"]
[TimeControl "180+1"]
[EndTime "8:40:19 PDT"]
[Termination "Game drawn - insufficient material"]

1. Nf3 {[%clk 0:03:00.9]} 1... d5 {[%clk 0:02:58.5]} 2. g3 {[%clk 0:03:01.2]}
2... c6 {[%clk 0:02:58.6]} 3. Bg2 {[%clk 0:03:01.8]} 3... Bg4 {[%clk 0:02:58.5]}
4. O-O {[%clk 0:03:02]} 4... e6 {[%clk 0:02:58.1]} 5. h3 {[%clk 0:03:00.4]} 5...
Bh5 {[%clk 0:02:57.5]} 6. d3 {[%clk 0:03:01]} 6... Bd6 {[%clk 0:02:57.1]} 7.
Nbd2 {[%clk 0:02:58.9]} 7... Ne7 {[%clk 0:02:57.2]} 8. e4 {[%clk 0:02:59.2]}
8... O-O {[%clk 0:02:57.2]} 9. Qe2 {[%clk 0:02:59.7]} 9... a5 {[%clk 0:02:57.4]}
10. g4 {[%clk 0:02:47.4]} 10... Bg6 {[%clk 0:02:57.2]} 11. Nh4 {[%clk
0:02:47.8]} 11... Qc7 {[%clk 0:02:56.4]} 12. d4 {[%clk 0:02:36.4]} 12... Bh2+
{[%clk 0:02:49.5]} 13. Kh1 {[%clk 0:02:36.7]} 13... Bf4 {[%clk 0:02:50.4]} 14.
c3 {[%clk 0:02:23.2]} 14... Nd7 {[%clk 0:02:48.2]} 15. exd5 {[%clk 0:02:11.4]}
15... cxd5 {[%clk 0:02:44.5]} 16. Nb3 {[%clk 0:02:03.5]} 16... a4 {[%clk
0:02:36.3]} 17. Bxf4 {[%clk 0:02:03]} 17... Qxf4 {[%clk 0:02:37.2]} 18. Nc1
{[%clk 0:02:03]} 18... a3 {[%clk 0:02:34.4]} 19. Nxg6 {[%clk 0:01:56.6]} 19...
Nxg6 {[%clk 0:02:32.2]} 20. Nd3 {[%clk 0:01:56.8]} 20... Qc7 {[%clk 0:02:27.8]}
21. Rfc1 {[%clk 0:01:38.6]} 21... axb2 {[%clk 0:02:26.7]} 22. Qxb2 {[%clk
0:01:39.5]} 22... Rfc8 {[%clk 0:02:12.4]} 23. a4 {[%clk 0:01:36.8]} 23... Nb6
{[%clk 0:02:02.5]} 24. Qb4 {[%clk 0:01:26.2]} 24... Nc4 {[%clk 0:01:59.6]} 25.
Ra2 {[%clk 0:01:18.9]} 25... h6 {[%clk 0:01:53.6]} 26. Bf1 {[%clk 0:01:16.7]}
26... b6 {[%clk 0:01:49.9]} 27. Nb2 {[%clk 0:00:55.7]} 27... Nd6 {[%clk
0:01:44.2]} 28. Nd3 {[%clk 0:00:55.2]} 28... Ne4 {[%clk 0:01:30.6]} 29. Bg2
{[%clk 0:00:52]} 29... Nh4 {[%clk 0:00:59.7]} 30. c4 {[%clk 0:00:38.2]} 30...
Nxg2 {[%clk 0:00:53.4]} 31. Kxg2 {[%clk 0:00:38.7]} 31... dxc4 {[%clk
0:00:53.7]} 32. Ne5 {[%clk 0:00:39.1]} 32... Nd6 {[%clk 0:00:28.8]} 33. Rac2
{[%clk 0:00:33.2]} 33... Qb7+ {[%clk 0:00:11.4]} 34. f3 {[%clk 0:00:33.6]} 34...
Qd5 {[%clk 0:00:08.4]} 35. Nxc4 {[%clk 0:00:32.6]} 35... Qxd4 {[%clk 0:00:03.8]}
36. Qxd6 {[%clk 0:00:20.6]} 36... Rxc4 {[%clk 0:00:03.5]} 37. Qxd4 {[%clk
0:00:15.6]} 37... Rxd4 {[%clk 0:00:04.4]} 38. Rc8+ {[%clk 0:00:14.6]} 38... Rd8
{[%clk 0:00:04.3]} 39. Rxd8+ {[%clk 0:00:14]} 39... Rxd8 {[%clk 0:00:04]} 40.
Rc6 {[%clk 0:00:13.4]} 40... Ra8 {[%clk 0:00:03.7]} 41. Rxb6 {[%clk 0:00:13.4]}
41... Rxa4 {[%clk 0:00:03.9]} 42. Kg3 {[%clk 0:00:14.1]} 42... g5 {[%clk
0:00:03.7]} 43. Rb7 {[%clk 0:00:14.6]} 43... Kg7 {[%clk 0:00:03.8]} 44. h4
{[%clk 0:00:14.6]} 44... Kg6 {[%clk 0:00:03.3]} 45. h5+ {[%clk 0:00:09.9]} 45...
Kg7 {[%clk 0:00:03.2]} 46. Rc7 {[%clk 0:00:10.2]} 46... Ra1 {[%clk 0:00:03.2]}
47. Rb7 {[%clk 0:00:10.4]} 47... Rg1+ {[%clk 0:00:03.4]} 48. Kf2 {[%clk
0:00:10.5]} 48... Rc1 {[%clk 0:00:04.3]} 49. Ra7 {[%clk 0:00:10.5]} 49... Rc2+
{[%clk 0:00:04.7]} 50. Kg3 {[%clk 0:00:10.7]} 50... Kf6 {[%clk 0:00:05.2]} 51.
Rb7 {[%clk 0:00:11]} 51... Rd2 {[%clk 0:00:04.5]} 52. Ra7 {[%clk 0:00:11.4]}
52... Rd5 {[%clk 0:00:03.6]} 53. Rb7 {[%clk 0:00:11.8]} 53... Rd8 {[%clk
0:00:03.8]} 54. Ra7 {[%clk 0:00:12]} 54... Re8 {[%clk 0:00:04.2]} 55. Rb7 {[%clk
0:00:12.6]} 55... Re7 {[%clk 0:00:04.6]} 56. Rb6 {[%clk 0:00:12.6]} 56... Kg7
{[%clk 0:00:03.8]} 57. Ra6 {[%clk 0:00:13]} 57... Rd7 {[%clk 0:00:03.6]} 58. Rb6
{[%clk 0:00:13.2]} 58... Rc7 {[%clk 0:00:04]} 59. Ra6 {[%clk 0:00:13.5]} 59...
Re7 {[%clk 0:00:03.5]} 60. Rb6 {[%clk 0:00:14]} 60... Ra7 {[%clk 0:00:03.7]} 61.
Rc6 {[%clk 0:00:14.3]} 61... Kf6 {[%clk 0:00:04]} 62. Rb6 {[%clk 0:00:14.3]}
62... Ke5 {[%clk 0:00:04.2]} 63. Rb8 {[%clk 0:00:14.2]} 63... f5 {[%clk
0:00:04.1]} 64. Rh8 {[%clk 0:00:12.6]} 64... f4+ {[%clk 0:00:04.1]} 65. Kf2
{[%clk 0:00:12.8]} 65... Ra2+ {[%clk 0:00:04.1]} 66. Ke1 {[%clk 0:00:10.8]}
66... Kd4 {[%clk 0:00:03.8]} 67. Rxh6 {[%clk 0:00:10.9]} 67... e5 {[%clk
0:00:03]} 68. Re6 {[%clk 0:00:11.5]} 68... Rh2 {[%clk 0:00:03.2]} 69. h6 {[%clk
0:00:07.3]} 69... Ke3 {[%clk 0:00:02.6]} 70. Rxe5+ {[%clk 0:00:07.8]} 70... Kxf3
{[%clk 0:00:03.1]} 71. Rxg5 {[%clk 0:00:08.4]} 71... Rxh6 {[%clk 0:00:03.2]} 72.
Rg8 {[%clk 0:00:07.9]} 72... Rh1+ {[%clk 0:00:02.9]} 73. Kd2 {[%clk 0:00:08.6]}
73... Kg3 {[%clk 0:00:03.3]} 74. g5 {[%clk 0:00:08.3]} 74... f3 {[%clk
0:00:03.3]} 75. g6 {[%clk 0:00:06.8]} 75... Rh4 {[%clk 0:00:03.3]} 76. Rf8
{[%clk 0:00:02.8]} 76... Rg4 {[%clk 0:00:03.3]} 77. Rf6 {[%clk 0:00:03]} 77...
Kg2 {[%clk 0:00:03.2]} 78. Ke3 {[%clk 0:00:03.2]} 78... Rg3 {[%clk 0:00:02.8]}
79. Ke4 {[%clk 0:00:03.2]} 79... f2 {[%clk 0:00:03]} 80. Ke5 {[%clk 0:00:03.8]}
80... Rg5+ {[%clk 0:00:02.4]} 81. Ke6 {[%clk 0:00:04]} 81... f1=Q {[%clk
0:00:02.1]} 82. Rxf1 {[%clk 0:00:04.2]} 82... Kxf1 {[%clk 0:00:02.6]} 83. Kf7
{[%clk 0:00:04.5]} 83... Rg2 {[%clk 0:00:02.8]} 84. g7 {[%clk 0:00:05]} 84...
Rf2+ {[%clk 0:00:03.7]} 85. Ke7 {[%clk 0:00:05.6]} 85... Rg2 {[%clk 0:00:04.5]}
86. Kf8 {[%clk 0:00:06.2]} 86... Kf2 {[%clk 0:00:05]} 87. g8=Q {[%clk
0:00:06.5]} 87... Rxg8+ {[%clk 0:00:05.9]} 88. Kxg8 {[%clk 0:00:07]} 1/2-1/2

[Event "Early-Titled-Tuesday-Blitz-March-26-2024"]
[Site "Chess.com"]
[Date "2024.03.26"]
[Round "5"]
[White "JaackCamel"]
[Black "Speed-O-Sonic"]
[Result "0-1"]
[WhiteElo "2188"]
[BlackElo "2456"]
[TimeControl "180+1"]
[EndTime "8:48:29 PDT"]
[Termination "Speed-O-Sonic won by resignation"]

1. d4 {[%clk 0:02:58.6]} 1... d5 {[%clk 0:02:58.1]} 2. c4 {[%clk 0:02:58]} 2...
e6 {[%clk 0:02:57.7]} 3. Nc3 {[%clk 0:02:57.4]} 3... c5 {[%clk 0:02:55.9]} 4.
cxd5 {[%clk 0:02:56.6]} 4... cxd4 {[%clk 0:02:56.1]} 5. Qxd4 {[%clk 0:02:54.5]}
5... Nc6 {[%clk 0:02:56]} 6. Qd1 {[%clk 0:02:46.8]} 6... exd5 {[%clk 0:02:55.9]}
7. Qxd5 {[%clk 0:02:41.8]} 7... Be6 {[%clk 0:02:54.6]} 8. Qxd8+ {[%clk
0:02:40.7]} 8... Rxd8 {[%clk 0:02:55.5]} 9. a3 {[%clk 0:02:40.3]} 9... Nd4
{[%clk 0:02:53.6]} 10. Kd1 {[%clk 0:02:20.3]} 10... Bb3+ {[%clk 0:02:40]} 11.
Kd2 {[%clk 0:02:19.1]} 11... Nc2+ {[%clk 0:02:38.2]} 0-1

[Event "Early-Titled-Tuesday-Blitz-March-26-2024"]
[Site "Chess.com"]
[Date "2024.03.26"]
[Round "5"]
[White "Andrey_Klymchuk"]
[Black "NovoselovRoman"]
[Result "1-0"]
[WhiteElo "2700"]
[BlackElo "2551"]
[TimeControl "180+1"]
[EndTime "8:49:14 PDT"]
[Termination "Andrey_Klymchuk won by resignation"]

1. e4 {[%clk 0:02:50.9]} 1... e6 {[%clk 0:02:58.2]} 2. d4 {[%clk 0:02:50.5]}
2... d5 {[%clk 0:02:58.5]} 3. Nd2 {[%clk 0:02:50.8]} 3... dxe4 {[%clk
0:02:57.8]} 4. Nxe4 {[%clk 0:02:50.8]} 4... Nd7 {[%clk 0:02:58.5]} 5. Nf3 {[%clk
0:02:50.7]} 5... Ngf6 {[%clk 0:02:58.9]} 6. Nxf6+ {[%clk 0:02:50.9]} 6... Nxf6
{[%clk 0:02:59.3]} 7. Be3 {[%clk 0:02:51.2]} 7... Bd6 {[%clk 0:02:58.2]} 8. Bd3
{[%clk 0:02:50.6]} 8... O-O {[%clk 0:02:57.4]} 9. Qe2 {[%clk 0:02:50.8]} 9... h6
{[%clk 0:02:52.7]} 10. O-O-O {[%clk 0:02:49.7]} 10... Qe7 {[%clk 0:02:45.6]} 11.
Kb1 {[%clk 0:02:45.5]} 11... c5 {[%clk 0:02:38.6]} 12. g4 {[%clk 0:02:39.3]}
12... Nxg4 {[%clk 0:02:30.8]} 13. Rhg1 {[%clk 0:02:34.1]} 13... Nxe3 {[%clk
0:02:25.3]} 14. Qxe3 {[%clk 0:02:33.7]} 14... Kh8 {[%clk 0:02:08.7]} 15. Rxg7
{[%clk 0:02:28]} 1-0

[Event "Early-Titled-Tuesday-Blitz-March-26-2024"]
[Site "Chess.com"]
[Date "2024.03.26"]
[Round "5"]
[White "ferrufino64"]
[Black "JAN2404"]
[Result "0-1"]
[WhiteElo "2198"]
[BlackElo "1962"]
[TimeControl "180+1"]
[EndTime "8:49:18 PDT"]
[Termination "JAN2404 won by resignation"]

1. e4 {[%clk 0:02:59.3]} 1... c5 {[%clk 0:02:58.5]} 2. Nf3 {[%clk 0:02:59]} 2...
d6 {[%clk 0:02:53.3]} 3. d4 {[%clk 0:02:58.4]} 3... cxd4 {[%clk 0:02:54.2]} 4.
Nxd4 {[%clk 0:02:59.1]} 4... Nf6 {[%clk 0:02:53.2]} 5. Nc3 {[%clk 0:02:59.4]}
5... Nc6 {[%clk 0:02:53.7]} 6. Be3 {[%clk 0:02:58.4]} 6... Ng4 {[%clk
0:02:53.3]} 7. Bg5 {[%clk 0:02:58.2]} 7... h6 {[%clk 0:02:52.8]} 8. Bh4 {[%clk
0:02:58.6]} 8... g5 {[%clk 0:02:53]} 9. Bg3 {[%clk 0:02:59]} 9... Bg7 {[%clk
0:02:53.5]} 10. Nb3 {[%clk 0:02:58.3]} 10... Be6 {[%clk 0:02:46.9]} 11. Be2
{[%clk 0:02:58.6]} 11... Nf6 {[%clk 0:02:46.1]} 12. Qd2 {[%clk 0:02:57.8]} 12...
Qd7 {[%clk 0:02:42.7]} 13. O-O-O {[%clk 0:02:58.1]} 13... a5 {[%clk 0:02:41]}
14. Nd5 {[%clk 0:02:52.9]} 14... Nxe4 {[%clk 0:02:31.9]} 15. Qe3 {[%clk
0:02:49.6]} 15... Bxd5 {[%clk 0:02:29]} 16. Rxd5 {[%clk 0:02:49.4]} 16... Nxg3
{[%clk 0:02:19.8]} 17. hxg3 {[%clk 0:02:48.5]} 17... a4 {[%clk 0:02:19.7]} 18.
Nd2 {[%clk 0:02:48.3]} 18... a3 {[%clk 0:02:18.6]} 19. b3 {[%clk 0:02:48.3]}
19... Nb4 {[%clk 0:02:11.1]} 20. Bb5 {[%clk 0:02:47.9]} 20... Nxa2+ {[%clk
0:02:02.6]} 21. Kd1 {[%clk 0:02:45.4]} 21... Nc3+ {[%clk 0:02:02.9]} 22. Ke1
{[%clk 0:02:45.9]} 22... Nxb5 {[%clk 0:02:02.7]} 23. c4 {[%clk 0:02:43.9]} 23...
a2 {[%clk 0:01:59.6]} 24. Ke2 {[%clk 0:02:43.9]} 24... Nc3+ {[%clk 0:01:59.1]}
25. Kd3 {[%clk 0:02:43.2]} 25... Nxd5 {[%clk 0:02:00]} 26. cxd5 {[%clk
0:02:43.6]} 0-1

[Event "Early-Titled-Tuesday-Blitz-March-26-2024"]
[Site "Chess.com"]
[Date "2024.03.26"]
[Round "5"]
[White "AlmasRakhmatullaev"]
[Black "LikeWater"]
[Result "1-0"]
[WhiteElo "2908"]
[BlackElo "2709"]
[TimeControl "180+1"]
[EndTime "8:49:38 PDT"]
[Termination "AlmasRakhmatullaev won by checkmate"]

1. e4 {[%clk 0:03:00.9]} 1... c6 {[%clk 0:02:56.3]} 2. Qe2 {[%clk 0:02:57.9]}
2... g6 {[%clk 0:02:52.8]} 3. h4 {[%clk 0:02:56.4]} 3... h5 {[%clk 0:02:41.7]}
4. Nf3 {[%clk 0:02:52.6]} 4... Bg7 {[%clk 0:02:41.7]} 5. Ng5 {[%clk 0:02:52.2]}
5... d5 {[%clk 0:02:38.9]} 6. e5 {[%clk 0:02:50.2]} 6... Nh6 {[%clk 0:02:32.9]}
7. e6 {[%clk 0:02:38.1]} 7... f6 {[%clk 0:02:28.5]} 8. Qd3 {[%clk 0:02:25.9]}
8... fxg5 {[%clk 0:01:50.5]} 9. Qxg6+ {[%clk 0:02:25]} 9... Kf8 {[%clk
0:01:47.7]} 10. hxg5 {[%clk 0:02:22.2]} 10... Qd6 {[%clk 0:01:36.4]} 11. gxh6
{[%clk 0:02:15.6]} 11... Rxh6 {[%clk 0:01:35.9]} 12. Qf7# {[%clk 0:02:15.9]} 1-0

[Event "Early-Titled-Tuesday-Blitz-March-26-2024"]
[Site "Chess.com"]
[Date "2024.03.26"]
[Round "5"]
[White "Firouzja2003"]
[Black "temus_galaktionov"]
[Result "1-0"]
[WhiteElo "3082"]
[BlackElo "2886"]
[TimeControl "180+1"]
[EndTime "8:50:01 PDT"]
[Termination "Firouzja2003 won by resignation"]

1. e4 {[%clk 0:03:00.9]} 1... c6 {[%clk 0:03:00.9]} 2. d4 {[%clk 0:02:59.5]}
2... g6 {[%clk 0:03:01.8]} 3. Nc3 {[%clk 0:02:55.6]} 3... Bg7 {[%clk 0:03:01.6]}
4. f4 {[%clk 0:02:56.3]} 4... d6 {[%clk 0:02:59.9]} 5. Nf3 {[%clk 0:02:55.8]}
5... Nd7 {[%clk 0:02:58.5]} 6. Be3 {[%clk 0:02:47.2]} 6... e5 {[%clk 0:02:58.5]}
7. dxe5 {[%clk 0:02:47.5]} 7... dxe5 {[%clk 0:02:59.4]} 8. Qd2 {[%clk
0:02:47.9]} 8... Qa5 {[%clk 0:02:56.4]} 9. O-O-O {[%clk 0:02:37]} 9... Ngf6
{[%clk 0:02:45.1]} 10. fxe5 {[%clk 0:02:34.1]} 10... Ng4 {[%clk 0:02:44.1]} 11.
e6 {[%clk 0:02:33.1]} 11... fxe6 {[%clk 0:02:44.5]} 12. Bc4 {[%clk 0:01:58.9]}
12... Nxe3 {[%clk 0:01:55.5]} 13. Qxe3 {[%clk 0:01:59.8]} 13... Qc5 {[%clk
0:01:55.4]} 14. Qd3 {[%clk 0:01:52.5]} 14... Nb6 {[%clk 0:01:53.9]} 15. Qd8+
{[%clk 0:01:49.2]} 15... Kf7 {[%clk 0:01:53.8]} 16. Ng5+ {[%clk 0:01:49.6]}
16... Qxg5+ {[%clk 0:01:50]} 17. Qxg5 {[%clk 0:01:50.5]} 17... Nxc4 {[%clk
0:01:48.8]} 18. Rhf1+ {[%clk 0:01:50.6]} 1-0

[Event "Early-Titled-Tuesday-Blitz-March-26-2024"]
[Site "Chess.com"]
[Date "2024.03.26"]
[Round "5"]
[White "1mbl4"]
[Black "Marielchessy"]
[Result "1-0"]
[WhiteElo "2576"]
[BlackElo "2365"]
[TimeControl "180+1"]
[EndTime "8:50:36 PDT"]
[Termination "1mbl4 won by resignation"]

1. b3 {[%clk 0:02:54.3]} 1... e5 {[%clk 0:02:59.5]} 2. Bb2 {[%clk 0:02:53.8]}
2... d6 {[%clk 0:03:00]} 3. e3 {[%clk 0:02:48.5]} 3... f5 {[%clk 0:03:00.4]} 4.
d4 {[%clk 0:02:47.4]} 4... e4 {[%clk 0:03:00.8]} 5. c4 {[%clk 0:02:46.6]} 5...
Nf6 {[%clk 0:03:01.4]} 6. Nc3 {[%clk 0:02:46.3]} 6... g6 {[%clk 0:03:02]} 7.
Nge2 {[%clk 0:02:40.1]} 7... Bg7 {[%clk 0:02:58.8]} 8. Nf4 {[%clk 0:02:39.3]}
8... O-O {[%clk 0:02:57.7]} 9. Be2 {[%clk 0:02:38.4]} 9... c6 {[%clk 0:02:55.2]}
10. h4 {[%clk 0:02:36.2]} 10... Qe8 {[%clk 0:02:53.7]} 11. h5 {[%clk 0:02:32.6]}
11... g5 {[%clk 0:02:49.7]} 12. h6 {[%clk 0:02:32]} 12... gxf4 {[%clk
0:02:42.6]} 13. hxg7 {[%clk 0:02:31.3]} 13... Rf7 {[%clk 0:02:43]} 14. d5 {[%clk
0:02:14.2]} 14... c5 {[%clk 0:02:39.3]} 15. exf4 {[%clk 0:02:08.8]} 15... Rxg7
{[%clk 0:02:32.9]} 16. Nb5 {[%clk 0:02:07]} 16... Qf8 {[%clk 0:02:30.4]} 17. Qd2
{[%clk 0:01:59.5]} 17... a6 {[%clk 0:01:59.1]} 18. Rh6 {[%clk 0:01:56.7]} 18...
axb5 {[%clk 0:01:51.7]} 19. Rxf6 {[%clk 0:01:50.5]} 19... Rf7 {[%clk 0:01:51.2]}
20. Rxf7 {[%clk 0:01:48.6]} 20... Qxf7 {[%clk 0:01:51.2]} 21. Qc3 {[%clk
0:01:47.3]} 21... Kf8 {[%clk 0:01:46.4]} 22. Qh8+ {[%clk 0:01:43.7]} 22... Qg8
{[%clk 0:01:45]} 23. Bg7+ {[%clk 0:01:41.5]} 1-0

[Event "Early-Titled-Tuesday-Blitz-March-26-2024"]
[Site "Chess.com"]
[Date "2024.03.26"]
[Round "5"]
[White "Shuvalov"]
[Black "Mops_2004"]
[Result "0-1"]
[WhiteElo "2602"]
[BlackElo "2822"]
[TimeControl "180+1"]
[EndTime "8:50:38 PDT"]
[Termination "Mops_2004 won by resignation"]

1. d4 {[%clk 0:00:39.2]} 1... g6 {[%clk 0:02:59.1]} 2. c4 {[%clk 0:00:37.9]}
2... Bg7 {[%clk 0:02:59.3]} 3. Nf3 {[%clk 0:00:36.6]} 3... d6 {[%clk 0:02:59.7]}
4. e4 {[%clk 0:00:34.6]} 4... Bg4 {[%clk 0:02:56.3]} 5. Be3 {[%clk 0:00:32.9]}
5... c5 {[%clk 0:02:53.3]} 6. Be2 {[%clk 0:00:30.5]} 6... Nc6 {[%clk 0:02:46.7]}
7. Nc3 {[%clk 0:00:19.3]} 7... Bxf3 {[%clk 0:02:45.8]} 8. Bxf3 {[%clk
0:00:17.5]} 8... cxd4 {[%clk 0:02:46]} 9. Bd2 {[%clk 0:00:15.2]} 9... dxc3
{[%clk 0:02:45.8]} 10. bxc3 {[%clk 0:00:15]} 10... Nf6 {[%clk 0:02:44.8]} 11.
O-O {[%clk 0:00:14.5]} 11... Nd7 {[%clk 0:02:44.6]} 12. Be2 {[%clk 0:00:14]}
12... O-O {[%clk 0:02:44.3]} 13. Rb1 {[%clk 0:00:14.1]} 13... b6 {[%clk
0:02:43.6]} 14. f4 {[%clk 0:00:14.1]} 14... Rc8 {[%clk 0:02:43.6]} 15. Bf3
{[%clk 0:00:14.5]} 15... Na5 {[%clk 0:02:43.5]} 0-1

[Event "Early-Titled-Tuesday-Blitz-March-26-2024"]
[Site "Chess.com"]
[Date "2024.03.26"]
[Round "5"]
[White "Masterbeaterr"]
[Black "deribas12345"]
[Result "0-1"]
[WhiteElo "2450"]
[BlackElo "2618"]
[TimeControl "180+1"]
[EndTime "8:50:38 PDT"]
[Termination "deribas12345 won by resignation"]

1. d4 {[%clk 0:03:00.9]} 1... Nf6 {[%clk 0:02:59.6]} 2. c4 {[%clk 0:03:01]} 2...
d6 {[%clk 0:02:46.7]} 3. Nc3 {[%clk 0:03:00]} 3... Bf5 {[%clk 0:02:47]} 4. g3
{[%clk 0:02:58.5]} 4... e5 {[%clk 0:02:45.5]} 5. Bg2 {[%clk 0:02:56.6]} 5...
exd4 {[%clk 0:02:45.8]} 6. Qxd4 {[%clk 0:02:53]} 6... Nc6 {[%clk 0:02:45.5]} 7.
Qe3+ {[%clk 0:02:52.3]} 7... Be7 {[%clk 0:02:45.3]} 8. h3 {[%clk 0:02:49.9]}
8... O-O {[%clk 0:02:40.1]} 9. g4 {[%clk 0:02:49.6]} 9... Bg6 {[%clk 0:02:21.3]}
10. Nf3 {[%clk 0:02:45]} 10... Re8 {[%clk 0:02:16.1]} 11. Qd2 {[%clk 0:02:45.1]}
11... Ne4 {[%clk 0:02:07.4]} 12. Nxe4 {[%clk 0:02:45.1]} 12... Bxe4 {[%clk
0:02:08.3]} 13. O-O {[%clk 0:02:42.1]} 13... Bf6 {[%clk 0:02:06.8]} 14. Qf4
{[%clk 0:02:15]} 14... Nb4 {[%clk 0:01:51.3]} 15. Bd2 {[%clk 0:02:01.6]} 15...
Nc2 {[%clk 0:01:44.3]} 16. Rab1 {[%clk 0:01:49.5]} 16... h6 {[%clk 0:01:41.2]}
17. b4 {[%clk 0:01:36.2]} 17... Bxf3 {[%clk 0:01:34.8]} 18. Bxf3 {[%clk
0:01:35.7]} 18... Bg5 {[%clk 0:01:34.4]} 0-1

[Event "Early-Titled-Tuesday-Blitz-March-26-2024"]
[Site "Chess.com"]
[Date "2024.03.26"]
[Round "5"]
[White "PolandHussars"]
[Black "UK_23"]
[Result "1-0"]
[WhiteElo "2553"]
[BlackElo "2400"]
[TimeControl "180+1"]
[EndTime "8:50:45 PDT"]
[Termination "PolandHussars won by resignation"]

1. e4 {[%clk 0:03:00.9]} 1... e5 {[%clk 0:02:59.5]} 2. Nc3 {[%clk 0:03:00.1]}
2... Nf6 {[%clk 0:02:59]} 3. g3 {[%clk 0:02:59.3]} 3... d5 {[%clk 0:02:58]} 4.
exd5 {[%clk 0:03:00.2]} 4... Nxd5 {[%clk 0:02:58.7]} 5. Bg2 {[%clk 0:03:00.4]}
5... Nxc3 {[%clk 0:02:59]} 6. bxc3 {[%clk 0:03:01.3]} 6... Bd6 {[%clk
0:02:59.2]} 7. Ne2 {[%clk 0:03:01.8]} 7... O-O {[%clk 0:02:59.4]} 8. O-O {[%clk
0:03:01.7]} 8... Nc6 {[%clk 0:02:59.4]} 9. Rb1 {[%clk 0:03:01.8]} 9... Re8
{[%clk 0:02:49.8]} 10. d3 {[%clk 0:03:01.2]} 10... h6 {[%clk 0:02:49.3]} 11. h3
{[%clk 0:03:00.5]} 11... Qf6 {[%clk 0:02:45.7]} 12. f4 {[%clk 0:02:54.6]} 12...
exf4 {[%clk 0:02:42.9]} 13. Bxf4 {[%clk 0:02:53.4]} 13... Bxf4 {[%clk
0:02:41.5]} 14. Rxf4 {[%clk 0:02:53.4]} 14... Qd6 {[%clk 0:02:35.2]} 15. Qf1
{[%clk 0:02:36.4]} 15... Be6 {[%clk 0:02:10.8]} 16. Rxb7 {[%clk 0:02:30.7]}
16... Rab8 {[%clk 0:02:02.3]} 17. Rxb8 {[%clk 0:02:25.5]} 17... Rxb8 {[%clk
0:02:03.2]} 18. c4 {[%clk 0:02:02.2]} 18... Rb2 {[%clk 0:01:56.8]} 19. Qc1
{[%clk 0:01:49.5]} 19... Rxa2 {[%clk 0:01:47.5]} 20. Nc3 {[%clk 0:01:49]} 20...
Qa3 {[%clk 0:01:24.2]} 21. Nxa2 {[%clk 0:01:43.7]} 21... Qxa2 {[%clk 0:01:23.6]}
22. Bxc6 {[%clk 0:01:42.7]} 1-0

[Event "Early-Titled-Tuesday-Blitz-March-26-2024"]
[Site "Chess.com"]
[Date "2024.03.26"]
[Round "5"]
[White "Bilan_Danila"]
[Black "Kotofeyca"]
[Result "0-1"]
[WhiteElo "2644"]
[BlackElo "2502"]
[TimeControl "180+1"]
[EndTime "8:50:46 PDT"]
[Termination "Kotofeyca won by checkmate"]

1. d4 {[%clk 0:03:00.9]} 1... d5 {[%clk 0:02:59.3]} 2. Nf3 {[%clk 0:02:57.8]}
2... c6 {[%clk 0:02:59.9]} 3. c4 {[%clk 0:02:51.1]} 3... Nf6 {[%clk 0:03:00.3]}
4. Nc3 {[%clk 0:02:50]} 4... dxc4 {[%clk 0:03:00.3]} 5. a4 {[%clk 0:02:27.6]}
5... Bg4 {[%clk 0:03:00.5]} 6. Ne5 {[%clk 0:02:23]} 6... Bh5 {[%clk 0:03:01]} 7.
f3 {[%clk 0:01:50.6]} 7... Nfd7 {[%clk 0:03:00.7]} 8. Nxc4 {[%clk 0:01:41.7]}
8... e5 {[%clk 0:03:00.6]} 9. Nxe5 {[%clk 0:01:29.9]} 9... Nxe5 {[%clk
0:02:59.9]} 10. dxe5 {[%clk 0:01:30.2]} 10... Nd7 {[%clk 0:03:00.7]} 11. e6
{[%clk 0:01:08.5]} 11... fxe6 {[%clk 0:02:59.9]} 12. e4 {[%clk 0:00:51.7]} 12...
Bc5 {[%clk 0:02:45.3]} 13. Bc4 {[%clk 0:00:46.8]} 13... Qh4+ {[%clk 0:02:33.7]}
14. Ke2 {[%clk 0:00:31.5]} 14... Qf2+ {[%clk 0:02:24]} 15. Kd3 {[%clk
0:00:23.8]} 15... Ne5# {[%clk 0:02:24.9]} 0-1

[Event "Early-Titled-Tuesday-Blitz-March-26-2024"]
[Site "Chess.com"]
[Date "2024.03.26"]
[Round "5"]
[White "GMAneta"]
[Black "LuisFSiles"]
[Result "1-0"]
[WhiteElo "2563"]
[BlackElo "2317"]
[TimeControl "180+1"]
[EndTime "8:50:52 PDT"]
[Termination "GMAneta won by resignation"]

1. d4 {[%clk 0:02:59.3]} 1... Nf6 {[%clk 0:02:59.7]} 2. Nf3 {[%clk 0:02:57.4]}
2... g6 {[%clk 0:02:59.7]} 3. c4 {[%clk 0:02:55.7]} 3... Bg7 {[%clk 0:02:59.4]}
4. g3 {[%clk 0:02:52.2]} 4... O-O {[%clk 0:02:59.1]} 5. Bg2 {[%clk 0:02:51.8]}
5... d6 {[%clk 0:02:57.9]} 6. O-O {[%clk 0:02:51.3]} 6... c6 {[%clk 0:02:57.7]}
7. Nc3 {[%clk 0:02:49.2]} 7... Qa5 {[%clk 0:02:57.8]} 8. h3 {[%clk 0:02:48.2]}
8... e5 {[%clk 0:02:57.9]} 9. e4 {[%clk 0:02:43.2]} 9... exd4 {[%clk 0:02:57.9]}
10. Nxd4 {[%clk 0:02:42.8]} 10... Qc5 {[%clk 0:02:58.6]} 11. Nb3 {[%clk
0:02:41.1]} 11... Qb4 {[%clk 0:02:57.4]} 12. Bf4 {[%clk 0:02:37.1]} 12... Ne8
{[%clk 0:02:55.4]} 13. Rc1 {[%clk 0:02:22.9]} 13... a5 {[%clk 0:02:32.5]} 14. a3
{[%clk 0:02:22]} 14... Qb6 {[%clk 0:02:32]} 15. Na4 {[%clk 0:02:16.5]} 15... Qa6
{[%clk 0:02:22.8]} 16. c5 {[%clk 0:02:14.6]} 16... dxc5 {[%clk 0:02:04.7]} 17.
Nbxc5 {[%clk 0:02:04.2]} 17... Qa7 {[%clk 0:02:04.7]} 18. Qd8 {[%clk 0:01:55.2]}
18... Nd7 {[%clk 0:01:41.2]} 19. Nxd7 {[%clk 0:01:35.3]} 1-0